Cogmind - Beta 14 @@@ ROGUE MODE // 2024.08.16 @ 16:09:21 Player: Alfapiomega Result: Destroyed by D-53 Grenadier with Mini Grenade Launcher Performance ------------- Evolutions (0) 0 Regions Visited (2) 400 Robots Destroyed (12) 60 Value Destroyed (323) 323 Prototype IDs (0) 0 Alien Tech Used (0) 0 Bonus (0) 0 TOTAL SCORE: 783 Bonus ------- None Cogmind --------- Core Integrity 0/250 Matter 279/300 Energy 50/100 System Corruption 0% Temperature Cool (0) Movement Core (50) Location -10/Mines Parts ------- > --- POWER (1) -------- (None) > --- PROPULSION (2) --- (None) > --- UTILITY (2) ------ Sensor Array > --- WEAPON (2) ------- EM Pulse Gun > --- INVENTORY (5) ---- Light Ion Engine Hover Unit Experimental Sensor Array Peak State ------------ > --- POWER ------------ Light Ion Engine > --- PROPULSION ------- Wheel Wheel > --- UTILITY ---------- Sensor Array Weapon Shielding > --- WEAPON ----------- EM Pulse Gun Rocket Launcher > --- INVENTORY -------- Light Ion Engine Hover Unit Experimental Sensor Array EM Pulse Gun [Rating: 9] Favorites ----------- Power Light Ion Engine Engine Light Ion Engine Propulsion Wheel Wheel Wheel Hover Unit Hover Unit Utility Sensor Array Device Sensor Array Protection Weapon Shielding Weapon EM Pulse Gun Energy Gun EM Pulse Gun Launcher Rocket Launcher Build | -11 -10 -10 ------- Run | Yrd Mat Min Slots Evolved . | . . . Power . | . . . Propulsion . | . . . Utility . | . . . Weapon . | . . . Parts Attached 24 | 5 16 3 Power 3 | 1 2 . Engine 3 | 1 2 . Core . | . . . Reactor . | . . . Propulsion 9 | 2 7 . Treads . | . . . Leg . | . . . Wheel 7 | 2 5 . Hover 2 | . 2 . Flight . | . . . Utility 3 | . 3 . Device 2 | . 2 . Storage . | . . . Processor . | . . . Hackware . | . . . Protection 1 | . 1 . Artifact . | . . . Weapon 9 | 2 4 3 Energy Gun 8 | 2 4 2 Energy Cannon . | . . . Ballistic Gun . | . . . Ballistic Cannon . | . . . Launcher 1 | . . 1 Special Weapon . | . . . Impact Weapon . | . . . Slashing Weapon . | . . . Piercing Weapon . | . . . Special Melee Weapon . | . . . Unidentified Prototypes . | . . . Parts Lost 11 | . 4 7 Power 2 | . 1 1 Propulsion 5 | . 3 2 Utility 1 | . . 1 Weapon 3 | . . 3 Highest Loss Streak 7 | . 2 7 To Critical Strikes . | . . . Average Slot Usage (%) 81 | . 79 93 Engine 13 | . 13 12 Wheel 20 | . 19 25 Hover 1 | . 1 . Device 14 | . 14 14 Protection 3 | . 2 12 Energy Gun 27 | . 28 23 Peak Build Rating 9 | 5 7 9 Average Rating 5 | 3 5 7 On Entrance 4 | . 5 7 Naked Turns . | . . . Heaviest Build 11 | 7 9 11 Greatest Support 20 | 20 20 20 Greatest Overweight (x) 1 | . 1 . Average Overweight (x) . | . . . Largest Inventory Capacity 5 | 5 5 5 Average Capacity 5 | 5 5 5 Most Carried 5 | 4 5 5 Average Carried 3 | . 3 4 Final Capacity 5 | 5 5 5 Final Carried 5 | . 5 3 Class Distribution -------------------- 100% | Mutant Dominant Class ---------------- Mutant | -10/Materials Mutant | -10/Mines Resources | -11 -10 -10 ----------- Run | Yrd Mat Min Matter Collected 381 | 87 294 . Remotely . | . . . Salvage Created 441 | . 441 . Parts 23 | . 23 . Haulers Intercepted . | . . . Recyclers Shooed 1 | . 1 . Parts Field Recycled . | . . . Retrieved Matter . | . . . Parts Self-Destructed . | . . . Prevented . | . . . Kills | -11 -10 -10 ------- Run | Yrd Mat Min Combat Hostiles Destroyed 10 | . 10 . Guns 10 | . 10 . Classes Destroyed 4 | . 4 . Worker 1 | . 1 . Builder 1 | . 1 . Swarmer 3 | . 3 . Grunt 7 | . 7 . Best Kill Streak 3 | . 3 . Combat Bots Only 3 | . 3 . Max Kills in Single Turn 1 | . 1 . Gunslinging . | . . . Exploded . | . . . Melee . | . . . Uniques/NPCs Destroyed . | . . . Combat | -11 -10 -10 -------- Run | Yrd Mat Min Hostile Shots Fired 51 | . 39 12 Missed 8 | . 8 . Damage Taken 897 | . 416 481 Core 263 | . 109 154 Absorbed by Shields . | . . . Redirected to Shielding 57 | . 23 34 Core Remaining (%) 100 | 100 . . Volleys Fired 39 | . 35 4 Largest 2 | . 2 2 Hottest 80 | . 80 73 Shots Fired 76 | . 70 6 Gun 74 | . 70 4 Cannon . | . . . Launcher 2 | . . 2 Special . | . . . Kinetic . | . . . Thermal 38 | . 38 . Explosive 2 | . . 2 Electromagnetic 36 | . 32 4 Robot Hit Streak 21 | . 21 2 Robot Miss Streak 2 | . 2 1 Penetration Max . | . . . Secondary Targets . | . . . Shots Hit Robots 55 | . 51 4 Core Hits 26 | . 22 4 Critical Kills . | . . . Critical Parts Destroyed . | . . . Critical Strikes . | . . . Melee Attacks . | . . . Impact . | . . . Slashing . | . . . Piercing . | . . . Sneak Attacks . | . . . Combat Hostiles . | . . . Follow-up Attacks . | . . . Damage Inflicted 778 | . 643 135 Guns 670 | . 624 46 Cannons . | . . . Explosions 89 | . . 89 Melee . | . . . Ramming 19 | . 19 . Kinetic . | . . . Thermal 335 | . 335 . Explosive 89 | . . 89 Electromagnetic 335 | . 289 46 Impact . | . . . Slashing . | . . . Piercing . | . . . Highest Corruption . | . . . Average Corruption . | . . . Corruption Purged . | . . . Corruption Blocked . | . . . Overload Shots . | . . . Overflow Damage 2 | . . 2 Projectiles . | . . . Explosions 2 | . . 2 Melee . | . . . Knockbacks . | . . . Impact . | . . . Kinetic . | . . . Secondary . | . . . Self-Inflicted Damage 76 | . 9 67 Shots 2 | . . 2 Rammed 2 | . 2 . Targets Rammed 2 | . 2 . Kicked . | . . . Crushed . | . . . Highest Temperature 203 | . 203 12 Average Temperature 62 | . 63 8 Received Heat Transfer 231 | . 231 . Siege Activations . | . . . Robots Corrupted . | . . . Combat Hostiles . | . . . Parts Fried 1 | . 1 . Impact Corruptions . | . . . Robots Melted . | . . . Combat Hostiles . | . . . Parts Melted 3 | . 3 . Heat Transferred 750 | . 750 . Parts Sabotaged . | . . . Parts Stolen . | . . . Parts Stripped . | . . . Power Chain Reactions . | . . . Alert | -11 -10 -10 ------- Run | Yrd Mat Min Peak Influence 202 | . 202 88 Initial 46 | . . 46 Average 68 | . 73 53 Maximum Alert Level 1 | . 1 . Low Security (%) 90 | 100 89 100 Level 1 9 | . 10 . Level 2 . | . . . Level 3 . | . . . Level 4 . | . . . Level 5 . | . . . High Security . | . . . Max Security . | . . . Squads Dispatched 3 | . 3 . Investigation 1 | . 1 . Extermination . | . . . Reinforcement 2 | . 2 . Assault . | . . . Garrison . | . . . Intercept . | . . . Searches Triggered . | . . . Construction Impeded . | . . . Haulers Reinforced . | . . . Active Scanning Responses . | . . . Cargo Convoy Interrupts . | . . . Stealth | -11 -10 -10 --------- Run | Yrd Mat Min Distress Signals 1 | . 1 . Communications Jammed . | . . . Distress Signals . | . . . Times Spotted 29 | . 25 4 Peak Tracking Total 4 | . 4 2 Tactical Retreats 3 | . 2 1 Traps | -11 -10 -10 ------- Run | Yrd Mat Min Traps Triggered . | . . . Indirectly . | . . . Trap Hack Attempts . | . . . Triggered . | . . . Disarmed 6 | . 6 . Reprogrammed . | . . . Reused . | . . . Traps Extracted . | . . . Installed . | . . . Triggered . | . . . Machines | -11 -10 -10 ---------- Run | Yrd Mat Min Machines Disabled 1 | . 1 . Max in Single Turn 1 | . 1 . Machines Repaired . | . . . Machines Dismantled . | . . . Machines Sabotaged . | . . . Overloaded Fab Kills . | . . . Hacking | -11 -10 -10 --------- Run | Yrd Mat Min Machines Accessed 8 | . 8 . Terminals 6 | . 6 . Fabricators . | . . . Repair Stations . | . . . Recycling Units 2 | . 2 . Scanalyzers . | . . . Garrison Access . | . . . Total Hacks 20 | . 20 . Successful 12 | . 12 . Failed 8 | . 8 . Catastrophic . | . . . Database Lockouts . | . . . Manual . | . . . Terminals 13 | . 13 . Fabricators . | . . . Repair Stations . | . . . Recycling Units 7 | . 7 . Scanalyzers . | . . . Garrison Access . | . . . Terminal Hacks 8 | . 8 . Robot Analysis 1 | . 1 . Branch Access Points 1 | . 1 . Alert Level 1 | . 1 . Locate Traps 1 | . 1 . Disarm Traps 1 | . 1 . Security Status 1 | . 1 . Registered Components 1 | . 1 . Zone Layout 1 | . 1 . Fabricator Hacks . | . . . Repair Station Hacks . | . . . Recycling Unit Hacks 4 | . 4 . Process 1 | . 1 . Report Inventory 1 | . 1 . Retrieve Components 2 | . 2 . Scanalyzer . | . . . Garrison Access Hacks . | . . . Unauthorized Hacks . | . . . Terminals . | . . . Fabricators . | . . . Repair Stations . | . . . Recycling Units . | . . . Scanalyzers . | . . . Garrison Access . | . . . Data Cores Recovered . | . . . Used . | . . . Hacking Detections 3 | . 3 . Full Trace Events 1 | . 1 . Feedback Events . | . . . Feedback Blocked . | . . . Robot Schematics Acquired . | . . . Robots Built . | . . . Authchips . | . . . Time . | . . . Total Robot Build Rating . | . . . Part Schematics Acquired . | . . . Parts Built . | . . . Authchips . | . . . Time . | . . . Total Part Build Rating . | . . . Parts Repaired . | . . . Time . | . . . Parts Recycled . | . . . Recycled Matter . | . . . Retrieved Matter . | . . . Retrieved Components 5 | . 5 . Parts Scanalyzed . | . . . Part Schematics Acquired . | . . . Parts Damaged . | . . . Bothacking | -11 -10 -10 ------------ Run | Yrd Mat Min Used RIF Installer . | . . . Robots Hacked . | . . . Non-combat . | . . . Combat . | . . . Robot Hacks Applied . | . . . Relay Couplers Released . | . . . Fabnet Peak Effective % . | . . . Robots Rewired . | . . . Allies Hacked . | . . . Hacks Repelled . | . . . Allies | -11 -10 -10 -------- Run | Yrd Mat Min Total Allies . | . . . Largest Group . | . . . Highest-Rated Group . | . . . Highest-Rated Ally . | . . . Total Orders . | . . . Ally Attacks . | . . . Total Damage . | . . . Kills . | . . . Allies Corrupted . | . . . Allies Melted . | . . . Intel | -11 -10 -10 ------- Run | Yrd Mat Min Robot Analysis Total 1 | . 1 . Derelict Logs Recovered . | . . . Drone Launches . | . . . Drone Recoveries . | . . . Exploration | -11 -10 -10 ------------- Run | Yrd Mat Min Turns Passed 1125 | 43 953 129 Spaces Moved 834 | 35 658 141 Core 56 | 13 41 2 Treads . | . . . Legs . | . . . Wheels 756 | 22 595 139 Hover 22 | . 22 . Flight . | . . . Fastest Speed 50 | 50 50 50 Average Speed 84 | 68 86 79 Slowest Speed 100 | 80 100 80 Overloaded Moves . | . . . Propulsion Burnouts . | . . . Robots Hopped . | . . . Cave-ins Triggered . | . . . Exploration Rate (%) 45 | 4 86 47 Regions Visited 2 Branch Regions 1 Pre-discovered Areas . | . . . Known Exits Taken 1 | . 1 . Unknown Exits Taken 1 | 1 . . Scrap Searched . | . . . Spaces Dug . | . . . Terrain Destroyed 16 | . . 16 Melee . | . . . Projectile . | . . . AOE 16 | . . 16 Terrain Rammed . | . . . Walls Destroyed . | . . . Machines Disabled . | . . . Actions | -11 -10 -10 --------- Run | Yrd Mat Min Total 1185 | 53 978 154 Wait 246 | 9 237 . Move 832 | 34 657 141 Hop . | . . . Pick Up 26 | 5 18 3 Fast Attach 4 | . 4 . Attach 19 | 5 11 3 Detach 1 | . 1 . Swap 1 | . 1 . Drop 15 | . 12 3 Fire 39 | . 35 4 Melee . | . . . Ram 2 | . 2 . Kick . | . . . Crush . | . . . Escape Stasis . | . . . Rewire . | . . . Trap . | . . . Miscellaneous . | . . . Route ------- -11/Scrapyard -10/Materials (discovered 3 exits: [*Mat x2] / *Min) -10/Mines (discovered 2 exits: [*Mat x2]) History --------- Turn | Location | Event 18 | -11/Scrapyard | Discovered new exit (range 16) 44 | -11/Scrapyard | Entered Materials 302 | -10/Materials | Build established: Mutant 483 | -10/Materials | Discovered new exit (range 9) 610 | -10/Materials | Identified exit to Mines 615 | -10/Materials | Discovered new exit (range 15) 847 | -10/Materials | Discovered new exit (range 16) 997 | -10/Materials | Entered Mines 1018 | -10/Mines | Found a damaged Exp. Sensor Array with a note attached 1020 | -10/Mines | Found Prototype Device 1055 | -10/Mines | Discovered new exit (range 10) 1089 | -10/Mines | Received a Rocket Launcher from a helpful Derelict 1099 | -10/Mines | Assembled infested the area 1109 | -10/Mines | Discovered new exit (range 12) 1119 | -10/Mines | Core integrity fell below 50% 1125 | -10/Mines | Core integrity fell below 20% 1126 | -10/Mines | Destroyed by D-53 Grenadier with Mini Grenade Launcher Last Messages --------------- Dropped EM Pulse Gun. Acquired EM Pulse Gun. ALERT: Infestation in the mines, dispatching Demolisher response squad. EXIT=FOUND C-30 ARC bursts open, deploying its payload. D-53 Grenadier unfolds itself. U-05 Engineer destroyed. Weapon Shielding destroyed. Wheel destroyed. Lgt. Ion Engine destroyed. Destroyed Lgt. Ion Engine. Rocket Launcher destroyed. EM Pulse Gun destroyed. Wheel destroyed. G-47 Trooper shuts down. G-47 Trooper destroyed. EM Pulse Gun destroyed. The unstable cave ceiling collapses. D-53 Grenadier destroyed. Map ----- +----------------------------------------------------+ | | | | | | | | | | | ???????????????????????????????????????? | | ???????????????????????????????????????? | | ???????????????????????????????????????? | | ???????????????????????????????????????? | | ???????????????????????????????????????? | | ???????????????????????????????????????? | | ?????????????????????+##???????????????? | | ?????????????????? ##?????????????? | | ????????????????? ##???????????? | | ????????????????? ##??????????? | | ?????????????????? ###????????? | | ??????????????????? < ##???????? | | ???????????????????# #???????? | | ??????????????????## #???????? | | ????????????????### #???????? | | ????????????????# #???????? | | ????????????????? #???????? | | ??????????????????? % #????????? | | ????????????????????# ##???????? | | ????????????????????# d ##??????? | | ????????????????????# @ #??????? | | ????????????????????# ##??????? | | ????????????????????# #???????? | | ????????????????????## #??????? | | ?????????????????????## ##??????? | | ????????????????######## #???????? | | ????????????????# ##???????? | | ?????????????????? """ ##????????? | | ?????????????????? """ # ###?????????? | | ??????????????????? """ # #???????????? | | ????????????????????%! # #???????????? | | ????????????????????= # #???????????? | | ????????????????????% # #???????????? | | ????????????????????###### #???????????? | | ?????????????????????## ##??????????? | | ???????????? ???????## #??????????? | | ???????????# #?????## #??????????? | | ?????????## ####### ##??????????? | | ?????????# ##???????????? | | ?????????# ##????????????? | | ###?????## ####### #?????????????? | | ##???## #?????## #?????????????? | | ##?## #??????### #?????????????? | | ### #????????# #?????????????? | | #????##### ######????????? | +----------------------------------------------------+ Best States ------------- Heat Dissipation 25 Energy Generation 10 Energy Capacity 250 Matter Stores 300 Matter Capacity 300 Sight Range 16 Robot Scan Range 14 Terrain Scan Density 10 Weapon Shielding 33 Evasion (%) 53 Item Schematics ----------------- None Robot Schematics ------------------ None Fabricated ------------ Nothing Alien Tech Used ----------------- None Achievements -------------- None Challenges ------------ None Game ------ Seed TransmissionAlloyLeg Manual? 0 Play Time 00:29:11 Cumulative 4.0 hours Start 2024.08.16 @ 12:02:09 End 2024.08.16 @ 16:09:21 Sessions 3 Manual Loads 0 Difficulty Rogue Special Mode None Game No. 5 Rogue 4 Adventurer 1 Explorer 0 Win Type - Total 0 Types 0/0/0/0/0/0/0/0/0 Lore% 2 Gallery% 7 Achievement% 7 Wizard Run 0 Options --------- Layout 1 ASCII 0 Keyboard 0 Movement Numpad Keybinds 0 Fullscreen 1 Font 24/Smallcaps Map View 25x17 Zoom Use 96% Tactical HUD 0 Map Filters NONE Filters NONE Steam 1 RUN: e4cdce89-2bd1-4780-b516-cef303965927